bitfinex/quotes_ETHUSD_20251124
["timestamp","ask_amount","ask_price","bid_price","bid_amount"]
[1764007681127,0.6268,2955.6,2955.5,0.224]
[1764007681480,0.1695,2955.6,2955.5,0.224]
[1764007681661,0.1695,2955.6,2955.1,3.38393333]
[1764007681662,0.4573,2955.5,2955.4,0.224]
[1764007681832,0.2118,2955.6,2955.4,0.224]
[1764007682032,0.0464,2955.5,2955.4,0.224]
[1764007682671,0.1695,2956.4,2955.4,1.1737]
[1764007682841,0.1695,2956.4,2955.6,0.72559411]
[1764007683042,0.1695,2956.4,2955.7,1.42596831]
[1764007683379,0.1695,2956.4,2955.8,0.224]
[1764007683686,0.2118,2955.8,2955.1,3.38390349]
[1764007683827,0.1695,2955.8,2955.2,0.224]
[1764007684026,0.4573,2955.7,2955.1,3.38390349]
[1764007684244,0.4573,2955.7,2955.3,0.224]
[1764007684628,0.1695,2955.8,2955.3,0.224]
[1764007684832,0.4573,2955.7,2955.3,3.38367134]
[1764007685031,0.4573,2955.7,2955.4,0.224]
[1764007685232,0.4573,2955.7,2955.0,25.68853783]
[1764007685233,0.0423,2955.4,2955.0,28.3840566]
[1764007685469,0.4573,2955.7,2955.1,0.94959411]
[1764007685841,0.0423,2955.2,2955.0,25.0]
[1764007686044,3.84070704,2955.7,2955.1,0.224]
[1764007686267,0.4573,2955.6,2955.1,0.224]
[1764007686434,0.0423,2955.2,2955.1,0.224]
[1764007687375,0.4954,2955.2,2955.1,0.224]
[1764007687843,0.1695,2955.8,2955.1,1.358]
[1764007688168,0.1695,2955.8,2955.1,2.08359411]
[1764007688368,0.1695,2955.8,2955.2,3.51889647]
[1764007688545,0.4573,2956.3,2955.2,3.51889647]
[1764007688934,0.405504,2956.8,2955.3,6.76750244]
[1764007689335,0.405504,2956.8,2955.3,3.38375122]
[1764007689534,0.405504,2956.8,2955.3,6.76750244]
[1764007689777,0.405504,2956.8,2955.4,0.67675024]
[1764007689976,0.405504,2956.6,2955.5,0.224]
[1764007690787,6.76475562,2956.5,2955.6,3.38340776]
[1764007691520,0.405504,2956.4,2955.7,0.224]
[1764007691679,0.405504,2956.4,2955.4,0.224]
[1764007691881,7.30141658,2955.6,2954.7,0.224]
[1764007692080,0.405504,2956.0,2954.6,0.224]
[1764007693014,0.405504,2955.8,2954.6,0.224]
[1764007693724,0.405504,2955.8,2954.6,3.60853598]
[1764007693906,1.05546971,2955.7,2954.6,3.60853598]
[1764007694324,1.05546971,2955.7,2954.6,3.38453598]
[1764007694525,1.05546971,2955.7,2954.7,0.224]
[1764007694734,1.27946971,2955.7,2954.5,0.224]
[1764007694942,0.405504,2955.5,2954.0,0.6602]
[1764007695258,0.71723195,2955.4,2954.1,0.44215125]
[1764007695458,1.27946971,2955.7,2954.1,0.4083]
[1764007695459,4.4387832,2955.7,2954.1,0.4083]
[1764007695612,3.60717565,2955.9,2954.2,0.4759]
[1764007695819,3.60717565,2955.9,2954.1,0.4083]
[1764007695820,0.405504,2955.5,2954.1,0.1843]
[1764007696062,0.72559411,2955.8,2954.2,0.6999]
[1764007696364,0.224,2956.2,2954.2,0.7999]
[1764007696660,3.38260663,2956.3,2954.5,0.1]
[1764007696960,7.10347392,2956.3,2954.6,0.72559411]
[1764007697145,6.76521326,2956.3,2954.6,0.72559411]
[1764007697310,7.30141658,2956.1,2954.3,1.20149411]
[1764007697516,13.53042652,2956.3,2954.3,1.20149411]
[1764007697517,10.14781989,2956.3,2954.5,0.224]
[1764007697747,1.23878199,2956.2,2954.6,0.4759]
[1764007698161,1.23878199,2956.2,2954.5,0.224]
[1764007698162,7.70692058,2956.1,2954.3,0.72559411]
[1764007698314,7.70692058,2956.1,2954.4,0.224]
[1764007698511,0.405504,2956.1,2954.4,0.6999]
[1764007699053,0.405504,2955.9,2954.5,3.38466745]
[1764007699221,0.49121346,2956.6,2954.5,0.72559411]
[1764007699416,7.52541658,2957.2,2954.6,0.6999]
[1764007699649,0.75254166,2957.1,2954.7,0.681]
[1764007700020,0.75254166,2957.1,2954.8,0.557]
[1764007700328,0.75254166,2957.1,2954.8,0.457]
[1764007700547,0.75254166,2957.1,2954.8,0.557]
[1764007700764,0.82779582,2957.0,2954.8,0.457]
[1764007700964,0.224,2957.3,2955.3,0.72559411]
[1764007701172,0.224,2957.3,2955.4,0.8629]
[1764007701576,0.224,2957.3,2955.5,0.457]
[1764007702865,10.14335946,2957.6,2955.6,10.15022328]
[1764007703073,1.7668776,2957.5,2955.7,1.78631644]
[1764007703275,1.7668776,2957.5,2955.7,2.24331644]
[1764007703450,1.7668776,2957.5,2955.8,0.457]
[1764007703781,1.7668776,2957.5,2955.9,0.224]
[1764007703984,1.7668776,2957.5,2956.0,0.224]
[1764007704287,1.19102371,2957.4,2956.0,0.224]
[1764007704486,0.002,2957.3,2956.1,0.1819]
[1764007704645,0.002,2957.3,2956.2,0.224]
[1764007705063,10.14638846,2957.3,2956.3,0.224]
[1764007705297,10.14638846,2957.3,2956.2,3.38272106]
[1764007705473,1.13374122,2957.2,2956.3,0.224]
[1764007705655,1.13374122,2957.2,2956.1,3.38282116]
[1764007705861,1.13374122,2957.2,2956.2,0.224]
[1764007706358,1.13374122,2957.2,2956.1,3.38282116]
[1764007706556,0.405504,2957.1,2955.6,0.457]
[1764007706793,1.13374122,2957.2,2955.8,0.72559411]
[1764007706993,6.76338304,2957.1,2956.0,0.72559411]
[1764007707773,10.14507456,2957.1,2955.7,0.457]
[1764007707972,7.70692058,2956.9,2955.5,3.38352224]
[1764007708172,7.70692058,2956.9,2955.7,0.224]
[1764007708895,0.405504,2956.3,2955.3,0.224]
[1764007709099,10.37216318,2956.2,2955.2,0.224]
[1764007709303,1.07776672,2956.1,2955.2,0.224]
[1764007709603,1.07776672,2956.1,2954.6,3.84152396]
[1764007709604,7.30141658,2955.2,2953.4,0.001]
[1764007709761,0.405504,2955.0,2953.5,0.224]
[1764007710097,0.405504,2955.0,2953.5,3.60972978]
[1764007710297,0.224,2955.1,2953.7,0.224]
[1764007710971,0.405504,2955.2,2953.9,6.7707099]
[1764007711175,0.405504,2955.2,2953.9,3.38535495]
[1764007711497,0.405504,2955.2,2953.8,3.60946719]
[1764007711498,0.405504,2955.2,2953.8,0.224]
[1764007711803,1.39405089,2955.1,2953.8,0.224]
[1764007712105,0.405504,2955.2,2953.8,0.681]
[1764007712273,3.38367777,2955.4,2953.9,0.457]
[1764007712476,3.38367777,2955.4,2954.0,0.224]
[1764007712682,6.76735554,2955.4,2954.0,0.224]
[1764007713001,7.17323544,2955.2,2954.1,3.56692222]
[1764007713199,7.17323544,2955.2,2953.6,0.001]
[1764007713424,3.78936972,2955.2,2953.7,1.40659411]
[1764007713564,3.38375639,2955.3,2953.8,0.457]
[1764007713992,3.38367425,2955.4,2953.8,0.457]
[1764007714386,3.38367425,2955.4,2953.9,0.224]
[1764007714705,6.76658658,2955.7,2953.9,0.224]
[1764007714914,7.50619564,2955.7,2954.0,0.457]
[1764007715282,7.50619564,2955.7,2954.2,0.72559411]
[1764007715711,7.50619564,2955.7,2954.2,1.18259411]
[1764007716037,7.50619564,2955.7,2954.3,0.457]
[1764007716211,0.79116996,2955.6,2954.3,0.457]
[1764007716414,0.79116996,2955.6,2954.4,0.224]
[1764007716989,3.38260663,2956.3,2954.5,0.457]
[1764007717217,3.38237781,2956.5,2954.7,0.72559411]
[1764007717385,6.76475562,2956.5,2954.7,0.72559411]
[1764007717586,6.76475562,2956.5,2954.8,0.457]
[1764007717776,7.80186343,2956.5,2954.9,0.224]
[1764007718413,7.80186343,2956.5,2955.1,6.76796046]
[1764007718781,3.38237781,2956.5,2955.2,1.36449411]
[1764007719215,3.38180588,2957.0,2955.3,0.457]
[1764007719516,3.38180588,2957.0,2955.4,0.224]
[1764007719677,6.76361176,2957.0,2955.5,0.224]
[1764007719901,0.67636118,2956.9,2955.5,0.224]
[1764007720101,0.67636118,2956.9,2955.6,0.457]
[1764007721041,6.76361176,2957.0,2955.6,0.457]
[1764007721042,0.002,2957.3,2955.8,0.72559411]
[1764007721221,6.76315432,2957.2,2955.8,0.72559411]
[1764007721416,6.76315432,2957.2,2955.8,1.18259411]
[1764007721727,0.03383,2956.0,2955.8,1.18259411]
[1764007722135,0.03383,2956.0,2955.9,1.1357]
[1764007722311,0.03383,2956.0,2955.9,2.3368174]
[1764007722508,0.03383,2956.0,2955.9,1.4251174]
[1764007722835,0.03383,2956.0,2955.9,1.1357]
[1764007723009,0.03383,2956.0,2955.9,4.51876437]
[1764007723722,0.03383,2956.0,2955.9,0.224]
[1764007724232,3.41679934,2956.0,2955.2,3.56573062]
[1764007724533,3.41679934,2956.0,2955.3,0.94959411]
[1764007724735,6.79976868,2956.0,2955.2,3.56573062]
[1764007724937,3.41679934,2956.0,2955.2,6.94959634]
[1764007725126,3.41679934,2956.0,2955.3,0.94959411]
[1764007725313,3.41679934,2956.0,2955.3,0.72559411]
[1764007725843,3.41679934,2956.0,2955.4,0.224]
[1764007726340,0.03383,2956.0,2955.4,0.224]
[1764007726554,0.03383,2956.0,2955.4,0.681]
[1764007726840,0.03383,2956.0,2955.9,0.4547]
[1764007727004,0.03383,2956.0,2955.9,4.06176437]
[1764007727200,0.03383,2956.0,2955.9,4.55646437]
[1764007727415,0.03383,2956.0,2955.9,4.06176437]
[1764007727847,0.03383,2956.0,2955.9,3.60706437]
[1764007728448,0.03383,2956.0,2955.9,3.38306437]
[1764007728666,0.03383,2956.0,2955.9,0.224]
[1764007729043,0.002,2956.9,2956.0,4.96617]
[1764007729244,0.405504,2956.7,2956.1,0.224]
[1764007729537,1.39542701,2956.9,2956.0,4.96617]
[1764007729739,0.405504,2956.8,2956.1,0.224]
[1764007729938,0.405504,2956.8,2956.0,4.96617]
[1764007730143,0.1800931,2956.7,2956.1,0.224]
[1764007730340,0.1800931,2956.7,2956.1,0.174]
[1764007730847,0.1800931,2956.7,2956.0,4.96617]
[1764007731077,6.76452682,2956.6,2956.0,4.96617]
[1764007731220,6.76452682,2956.6,2956.0,5.19017]
[1764007731550,6.97293148,2956.2,2956.0,4.96617]
[1764007732643,0.405504,2956.1,2956.0,4.96617]
[1764007732846,0.405504,2956.1,2955.0,0.224]
[1764007733042,0.405504,2956.1,2954.7,3.56807552]
[1764007733043,6.76681552,2955.6,2954.7,3.56807552]
[1764007733224,0.67668155,2955.5,2954.8,0.224]
[1764007733624,0.67668155,2955.5,2954.4,3.38475773]
[1764007733830,0.67668155,2955.5,2954.5,0.94959411]
[1764007734033,0.67668155,2955.5,2954.5,1.43239411]
[1764007734248,3.38340776,2955.6,2954.6,1.30299339]
[1764007734432,6.76681552,2955.6,2954.7,0.224]
[1764007734631,3.38340776,2955.6,2954.7,0.224]
[1764007734862,3.38340776,2955.6,2954.8,0.224]
[1764007735070,3.38338518,2955.7,2954.8,3.60826226]
[1764007735071,7.17209058,2955.7,2954.8,3.60826226]
[1764007735271,8.58659279,2955.7,2954.8,3.60826226]
[1764007736267,8.58659279,2955.7,2954.7,3.38439152]
[1764007736543,8.58659279,2955.7,2954.8,0.224]
[1764007736739,8.58659279,2955.7,2954.9,0.224]
[1764007737574,10.35550079,2956.4,2954.9,7.47521338]
[1764007737777,3.38400847,2956.9,2955.0,0.51664094]
[1764007737778,3.38226429,2956.6,2955.0,0.51664094]
[1764007737980,6.76452858,2956.6,2955.1,0.1837]
[1764007738340,6.76452858,2956.6,2955.2,0.4828]
[1764007738543,0.405504,2956.4,2955.3,0.224]
[1764007738967,0.405504,2956.2,2955.1,0.1837]
[1764007739157,0.405504,2956.2,2955.4,0.224]
[1764007739566,0.405504,2956.0,2955.1,0.1837]
[1764007739881,1.05540105,2955.9,2955.2,0.224]
[1764007740090,1.05540105,2955.9,2954.9,3.38416004]
[1764007740248,0.405504,2955.8,2954.6,3.38450878]
[1764007740441,0.405504,2955.8,2954.7,0.72559411]
[1764007740647,0.405504,2956.0,2954.8,0.224]
[1764007740878,0.405504,2955.8,2954.9,0.224]
[1764007741049,0.405504,2955.8,2954.7,0.72559411]
[1764007741243,6.97293148,2955.5,2954.2,0.4828]
[1764007741449,0.7395175,2956.0,2954.1,0.1819]
[1764007741450,0.405504,2955.0,2954.1,0.1819]
[1764007741652,6.76841854,2954.9,2954.2,0.224]
[1764007741888,6.76841854,2954.9,2954.0,0.001]
[1764007741889,6.97293148,2954.7,2954.0,0.001]
[1764007742045,0.405504,2954.6,2954.0,0.001]
[1764007742383,6.97293148,2954.7,2954.0,0.001]
[1764007742384,0.73784355,2954.5,2954.0,0.001]
[1764007743397,6.99241854,2954.9,2954.1,0.1837]
[1764007743884,3.38405911,2955.1,2954.2,0.4828]
[1764007744084,3.38405911,2955.1,2954.3,0.224]
[1764007744375,6.76811822,2955.1,2954.3,0.224]
[1764007744552,6.76811822,2955.1,2954.2,0.4828]
[1764007744748,0.69921182,2955.0,2954.3,0.224]
[1764007745076,3.60791378,2955.2,2954.3,0.224]
[1764007745077,3.38386781,2955.2,2954.3,0.224]
[1764007745253,3.38386781,2955.2,2954.4,0.4828]
[1764007745588,0.224,2955.7,2954.4,0.4828]
[1764007745901,0.224,2955.7,2954.5,6.7693349]
[1764007745902,3.38365399,2955.4,2954.5,6.7693349]
[1764007746115,3.38342015,2955.6,2954.5,6.7693349]
[1764007746254,6.7668403,2955.6,2954.6,0.4828]
[1764007746454,0.7395175,2956.0,2954.6,0.51664552]
[1764007746757,0.224,2956.1,2954.6,0.4828]
[1764007747066,0.405504,2956.0,2954.6,0.4828]
[1764007747589,0.405504,2955.8,2954.6,0.4828]
[1764007747773,3.38306437,2955.9,2954.7,0.224]
[1764007748090,3.38238302,2956.5,2954.8,1.23039058]
[1764007748292,0.002,2956.6,2954.8,1.23039058]
[1764007748450,3.38426341,2956.6,2954.9,0.4828]
[1764007748790,0.33842634,2956.5,2954.9,0.4828]
[1764007748972,0.33842634,2956.5,2955.0,0.224]
[1764007749387,0.33842634,2956.5,2955.1,0.6665]
[1764007749900,0.33842634,2956.5,2955.2,4.09064284]
[1764007749901,10.14747666,2956.4,2955.2,4.09064284]
[1764007750106,3.38249222,2956.4,2955.2,4.09064284]
[1764007750304,1.069385,2956.3,2955.3,0.224]
[1764007750515,1.069385,2956.3,2953.7,4.02694919]
[1764007750820,1.069385,2956.3,2951.1,4.21870794]
[1764007750821,0.09678965,2953.2,2951.1,4.21870794]
[1764007751028,4.44844,2952.4,2951.1,4.70150794]
[1764007751169,0.405504,2952.5,2951.2,0.4828]
[1764007751368,4.44844,2952.4,2951.2,2.41696666]
[1764007751618,4.44844,2952.7,2951.2,0.4828]
[1764007751821,4.44844,2952.7,2951.3,0.4828]
[1764007752003,4.44844,2953.3,2951.4,0.227]
[1764007752201,4.44844,2953.2,2951.5,0.4828]
[1764007752366,0.405504,2953.1,2951.5,0.4828]
[1764007752571,4.44844,2953.0,2951.6,0.227]
[1764007752774,4.44844,2953.0,2951.7,0.227]
[1764007753277,4.44844,2953.0,2950.6,0.405504]
[1764007753472,4.44844,2953.0,2948.2,1.07764948]
[1764007753473,24.061002,2948.5,2948.2,1.07764948]
[1764007753770,0.4299,2950.5,2948.7,0.1837]
[1764007753970,11.90705748,2950.4,2948.7,0.1837]
[1764007754198,4.410116,2950.4,2948.7,0.1837]
[1764007754409,4.410116,2950.2,2948.7,0.1837]
[1764007754971,4.410116,2950.7,2948.8,0.239]
[1764007755176,4.410116,2950.5,2948.8,0.239]
[1764007755377,0.405504,2950.4,2948.7,0.1837]
[1764007755700,0.405504,2950.0,2948.7,6.78264998]
[1764007756026,4.410116,2949.7,2948.7,3.39132499]
[1764007756318,4.410116,2949.7,2948.2,0.4828]
[1764007756319,0.405504,2949.6,2948.3,3.39178509]
[1764007756483,0.405504,2950.7,2948.8,0.4828]
[1764007756684,1.31019408,2949.1,2946.8,30.0]
[1764007756885,5.89419564,2947.9,2946.7,0.001]
[1764007757088,13.90580364,2948.5,2946.7,3.39459616]
[1764007757409,0.405504,2948.4,2946.7,10.18184968]
[1764007757620,6.638434,2948.1,2946.7,13.57547644]
[1764007757778,4.410116,2947.9,2946.7,0.001]
[1764007758103,1.96628512,2949.6,2947.0,0.1837]
[1764007758271,7.705175,2950.0,2947.0,0.1837]
[1764007758476,7.705175,2950.0,2947.1,0.4828]
[1764007758677,4.292925,2949.8,2947.2,0.246]
[1764007758905,3.896289,2949.8,2947.2,0.246]
[1764007759119,10.517631,2949.6,2947.3,0.7288]
[1764007759323,3.52793,2949.6,2947.4,0.246]
[1764007759626,0.1667,2950.1,2947.4,0.7399]
[1764007759627,0.4901,2949.5,2947.4,0.7399]
[1764007759844,0.4901,2949.5,2947.7,0.72559411]
[1764007759996,0.4901,2949.5,2947.8,1.42959564]
[1764007759997,3.166998,2949.4,2947.8,1.42959564]
[1764007760184,0.405504,2949.1,2947.3,3.39293079]
[1764007760384,0.405504,2949.1,2947.3,6.78586669]
[1764007760581,0.1667,2947.4,2946.7,0.001]
[1764007760832,4.139985,2947.3,2946.7,0.001]
[1764007761163,0.405504,2947.2,2946.7,0.001]
[1764007761313,0.1667,2947.4,2946.8,3.3935116]
[1764007761482,0.405504,2947.1,2946.7,0.001]
[1764007761883,0.1667,2947.4,2946.7,0.001]
[1764007761884,0.405504,2946.9,2946.7,0.001]
[1764007762127,0.405504,2946.8,2946.7,0.001]
[1764007762421,0.898004,2946.8,2946.7,0.001]
[1764007762619,0.405504,2947.3,2946.7,0.001]
[1764007764323,5.89419564,2948.1,2946.7,0.001]
[1764007764324,0.4925,2948.5,2946.7,0.001]
[1764007764490,0.6592,2948.4,2946.7,0.001]
[1764007764685,9.94506971,2948.4,2946.7,0.001]
[1764007764912,0.405504,2948.2,2946.8,0.245]
[1764007765919,0.4925,2948.3,2946.9,6.7867929]
[1764007766596,6.06089564,2948.4,2946.9,6.7867929]
[1764007766597,0.1667,2948.4,2947.0,0.4939]
[1764007766918,0.1667,2948.4,2947.1,1.06740894]
[1764007767121,0.6592,2948.9,2947.1,1.06740894]
[1764007767424,0.1667,2948.9,2947.2,0.4939]
[1764007767996,0.1667,2948.9,2947.4,0.72559411]
[1764007768199,0.1667,2948.9,2947.5,1.33544018]
[1764007768404,0.1667,2948.9,2947.5,1.82934018]
[1764007768717,0.1667,2948.9,2947.6,0.4939]
[1764007769049,3.8831437,2949.3,2947.6,0.4939]
[1764007769050,0.405504,2949.2,2947.6,0.4939]
[1764007769220,0.1667,2949.5,2947.7,0.244]
[1764007769221,9.94381502,2949.5,2947.7,0.244]
[1764007769425,14.3286159,2949.5,2947.7,0.244]
[1764007769618,0.405504,2949.3,2947.7,0.244]
[1764007769819,0.405504,2949.3,2947.8,0.244]
[1764007770020,0.405504,2949.3,2947.8,0.72559411]
[1764007770021,0.405504,2949.1,2947.8,0.72559411]
[1764007770211,0.405504,2949.1,2947.9,0.244]
[1764007770720,3.8831781,2949.3,2947.9,0.244]
[1764007770721,0.405504,2949.2,2947.9,0.244]
[1764007770925,0.405504,2949.2,2948.0,0.244]
[1764007771246,0.405504,2949.2,2947.8,0.72559411]
[1764007771445,0.898004,2949.2,2948.1,0.244]
[1764007771650,0.898004,2949.2,2947.9,0.41180696]
[1764007771945,0.898004,2949.2,2948.2,0.244]
[1764007772149,5.89419564,2949.4,2948.2,0.244]
[1764007772150,3.7960341,2949.4,2948.2,0.244]
[1764007772332,3.7960341,2949.4,2948.2,3.63588227]
[1764007772507,0.1667,2949.5,2948.3,0.36358823]
[1764007772712,3.55712314,2949.5,2948.3,0.36358823]
[1764007772913,0.405504,2949.4,2948.3,0.36358823]
[1764007773449,5.89419564,2949.3,2948.4,0.244]
[1764007773946,0.405504,2949.2,2948.3,0.244]
[1764007774151,6.78173,2949.1,2947.9,3.88613003]
[1764007774352,6.78173,2949.1,2948.2,0.244]
[1764007774550,6.78173,2949.1,2948.1,0.244]
[1764007774551,0.405504,2948.7,2948.1,0.244]
[1764007774914,0.405504,2948.7,2947.5,0.4939]
[1764007775647,0.405504,2948.7,2947.6,0.243]
[1764007775850,11.52998796,2949.1,2947.6,0.243]
[1764007775851,1.35739296,2949.1,2947.6,0.243]
[1764007776050,5.89419564,2949.8,2947.9,0.72559411]
[1764007776212,5.89419564,2949.8,2948.0,1.42950357]
[1764007776418,5.89419564,2949.8,2948.0,1.92340357]
[1764007776652,0.72559411,2949.7,2948.1,0.7369]
[1764007776949,0.72559411,2949.7,2948.2,0.21664036]
[1764007777149,0.72559411,2949.7,2948.2,0.71054036]
[1764007777530,5.89419564,2949.8,2948.3,0.4939]
[1764007777725,0.72559411,2949.7,2948.3,0.4939]
[1764007777926,5.89419564,2949.8,2948.3,0.4939]
[1764007778131,0.405504,2949.5,2948.4,6.7833401]
[1764007778334,0.405504,2949.5,2948.5,0.6886]
[1764007778528,0.1667,2950.1,2948.5,1.41419411]
[1764007778736,0.002,2949.8,2948.6,0.4939]
[1764007779825,0.002,2949.8,2948.7,0.243]
[1764007780020,0.002,2949.8,2948.6,0.4939]
[1764007780248,0.405504,2949.5,2948.6,0.4939]
[1764007780438,0.72065016,2949.4,2948.7,0.243]
[1764007780758,1.1075363,2949.5,2948.7,0.243]
[1764007780924,0.72064939,2949.4,2948.5,0.92029411]
[1764007781120,0.72150991,2949.3,2948.6,0.242]
[1764007781354,0.405504,2949.5,2948.6,0.242]
[1764007781563,0.72171917,2949.4,2948.6,0.242]
[1764007781766,0.405504,2949.6,2948.6,0.7359]
[1764007781920,0.405504,2949.4,2948.6,1.57983105]
[1764007782119,0.405504,2949.4,2948.5,0.92029411]
[1764007782120,3.39075003,2949.2,2948.5,0.1947]
[1764007782421,0.72170064,2949.1,2948.6,0.242]
[1764007782637,0.72170064,2949.0,2948.5,4.08014206]
[1764007782867,3.39067136,2949.3,2948.6,0.242]
[1764007783050,0.72313031,2949.2,2948.6,0.242]
[1764007783220,3.39067136,2949.3,2948.5,0.6886]
[1764007783221,1.62903886,2949.1,2948.5,0.6886]
[1764007783417,0.72313031,2949.0,2948.6,0.242]
[1764007783641,0.72313031,2948.9,2948.6,0.242]
[1764007783871,0.90590855,2949.2,2948.6,0.242]
[1764007784083,0.72503651,2949.1,2948.7,0.242]
[1764007784285,0.72503651,2949.0,2948.7,0.242]
[1764007784443,0.72503651,2948.9,2948.7,0.242]
[1764007784649,0.90590855,2949.6,2949.2,0.1947]
[1764007784895,0.72554474,2949.5,2949.3,0.242]
[1764007785051,0.72554474,2949.4,2949.3,0.242]
[1764007785661,0.002,2949.8,2949.3,0.7359]
[1764007786062,0.002,2949.8,2949.4,0.4939]
[1764007786288,0.002,2949.8,2949.6,0.72559411]
[1764007786583,0.002,2949.8,2949.7,0.75064044]
[1764007786791,0.002,2949.8,2949.7,1.24454044]
[1764007787351,0.002,2949.8,2949.4,3.3904983]
[1764007787551,0.002,2949.8,2949.7,0.241]
[1764007788664,0.002,2949.8,2949.7,0.4662]
[1764007788868,0.002,2949.8,2949.7,0.7072]
[1764007789271,0.002,2949.8,2949.7,0.241]
[1764007789764,0.002,2949.8,2949.1,0.241]
[1764007790170,0.405504,2949.7,2949.1,0.241]
[1764007790381,3.3902902,2949.6,2949.1,0.241]
[1764007790577,6.7805804,2949.6,2948.5,0.1947]
[1764007790782,3.3902902,2949.6,2948.6,0.241]
[1764007791091,4.13328113,2949.8,2948.7,0.241]
[1764007791299,4.13328113,2949.8,2948.7,1.57322905]
[1764007791300,0.74321933,2949.8,2948.7,1.57322905]
[1764007791509,7.52337878,2949.8,2948.7,1.57322905]
[1764007791709,7.52337878,2949.8,2948.8,0.4889]
[1764007792080,0.74321933,2949.8,2948.8,0.4889]
[1764007792284,3.39040515,2949.5,2948.5,0.1947]
[1764007792485,6.7808103,2949.5,2948.9,0.24]
[1764007792697,6.7808103,2949.5,2948.5,3.58622533]
[1764007792905,6.7808103,2949.5,2948.6,0.7289]
[1764007793207,0.405504,2949.6,2948.7,0.24]
[1764007793415,0.72759411,2949.8,2948.7,0.7289]
[1764007793602,4.11766037,2949.8,2948.7,0.7289]
[1764007793787,4.11766037,2949.8,2948.8,0.4889]
[1764007793987,5.2792356,2949.8,2948.8,0.4889]
[1764007794201,0.31618796,2949.7,2948.8,0.4889]
[1764007794404,8.66930186,2949.8,2948.8,0.4889]
[1764007794576,0.31618789,2949.7,2948.8,0.4889]
[1764007794776,8.66930186,2949.8,2948.8,0.4889]
[1764007795021,2.27192613,2949.7,2948.9,0.24]
[1764007795177,1.95573721,2949.7,2948.9,0.24]
[1764007795702,1.95573721,2949.7,2949.0,0.24]
[1764007796208,0.31655355,2949.6,2949.0,0.24]
[1764007796422,6.7805804,2949.6,2949.0,0.24]
[1764007797296,6.7805804,2949.6,2948.8,0.4889]
[1764007797297,7.72697157,2949.6,2948.8,0.4889]
[1764007797483,7.72697157,2949.6,2948.9,0.239]
[1764007797685,0.31669123,2949.5,2948.5,0.1947]
[1764007797996,11.11726177,2949.6,2948.5,0.1947]
[1764007798175,0.31670247,2949.5,2948.6,0.239]
[1764007798377,7.72697157,2949.6,2948.6,0.239]
[1764007798577,1.42849273,2949.5,2948.7,0.239]
[1764007798807,1.11171697,2949.5,2948.7,0.239]
[1764007799426,8.7839514,2949.4,2948.5,0.1947]
[1764007799625,0.405504,2949.2,2948.6,0.239]
[1764007799837,1.04685547,2949.1,2948.6,0.239]
[1764007800125,0.31681119,2949.0,2948.6,0.239]
[1764007800424,6.78173,2949.1,2948.1,0.72559411]
[1764007800722,8.05398162,2948.9,2947.9,0.1957]
[1764007800921,1.04709698,2948.8,2948.0,0.239]
[1764007801128,1.04709698,2948.7,2948.0,0.239]
[1764007801328,0.31688569,2948.6,2948.0,0.239]
[1764007801528,0.1667,2948.8,2948.0,0.239]
[1764007801732,1.04710291,2948.7,2947.9,0.1957]
[1764007802036,0.90590855,2949.7,2948.2,4.192056]
[1764007802344,0.002,2949.8,2948.3,0.4919956]
[1764007802488,0.002,2949.8,2948.4,0.72559411]
[1764007802690,0.002,2949.8,2948.5,0.7279]
[1764007803102,0.002,2949.8,2948.7,0.72559411]
[1764007803297,0.002,2949.8,2948.8,0.4889]
[1764007803642,0.002,2949.8,2948.9,0.405504]
[1764007803797,0.002,2950.1,2949.3,1.13109811]
[1764007804117,0.002,2950.1,2949.1,1.13109811]
[1764007804118,0.002,2950.1,2949.4,0.66335661]
[1764007804425,0.002,2950.1,2949.5,0.4889]
[1764007804625,0.002,2950.1,2949.7,0.72559411]
[1764007805008,0.002,2950.1,2949.8,0.4889]
[1764007806592,0.002,2950.1,2949.9,3.38994542]
[1764007807002,0.002,2950.1,2950.0,0.4889]
[1764007807224,0.002,2950.1,2950.0,1.21577914]
[1764007808325,0.002,2950.1,2950.0,1.94137325]
[1764007808825,0.002,2950.1,2950.0,5.33120375]
[1764007809420,0.002,2950.4,2950.0,11.721341]
[1764007809595,0.002,2950.4,2950.3,0.1639]
[1764007810923,0.002,2950.4,2950.3,6.88812592]
[1764007811227,0.002,2950.4,2950.3,5.33055226]
[1764007811395,0.002,2950.4,2950.3,2.66696645]
[1764007811594,0.002,2950.4,2950.3,5.00487992]
[1764007813093,0.002,2950.4,2950.3,4.76787992]
[1764007813290,0.002,2950.4,2950.3,5.00487992]
[1764007813521,0.002,2950.4,2950.3,5.41038392]
[1764007815334,0.002,2950.4,2950.3,5.90768392]
[1764007815541,0.002,2950.4,2950.3,7.17637257]
[1764007816629,0.002,2950.4,2950.3,5.41546257]
[1764007816996,0.002,2950.4,2950.3,4.77295857]
[1764007817247,0.002,2950.4,2950.3,0.4973]
[1764007817450,0.002,2950.4,2950.3,4.12278581]
[1764007817803,0.002,2950.4,2950.3,0.4973]
[1764007818001,0.002,2950.4,2950.3,3.88678581]
[1764007818302,0.002,2950.4,2950.3,4.85042423]
[1764007818523,0.002,2950.4,2950.3,4.61442423]
[1764007818832,0.002,2950.4,2950.3,6.03191834]
[1764007819001,0.002,2950.4,2950.3,1.46093842]
[1764007819199,0.002,2950.4,2950.3,5.57601834]
[1764007819503,0.002,2950.4,2950.3,6.03191834]
[1764007820132,0.002,2950.4,2950.3,2.18653253]
[1764007820332,0.002,2950.4,2949.9,3.38994542]
[1764007820524,0.4254,2950.3,2950.0,0.236]
[1764007821551,0.9182,2950.3,2950.0,0.236]